Cogmind - Beta 13 @@@ ROGUE MODE // 2024.07.29 @ 19:34:57 Player: iromakkem Result: Self-destructed Performance ------------- Evolutions (1) 500 Regions Visited (2) 400 Robots Destroyed (11) 55 Value Destroyed (243) 243 Prototype IDs (0) 0 Alien Tech Used (0) 0 Bonus (0) 0 TOTAL SCORE: 1198 Bonus ------- None Cogmind --------- Core Integrity 400/400 Matter 252/300 Energy 250/250 System Corruption 0% Temperature Cool (0) Movement Walking (190) Ox1 Location -9/Materials Parts ------- > --- POWER (1) -------- Ion Engine > --- PROPULSION (2) --- Aluminum Leg Aluminum Leg > --- UTILITY (3) ------ Heat Sink Medium Storage Unit Improved Terrain Scanner > --- WEAPON (3) ------- Medium Laser Medium Laser Plasma Cutter > --- INVENTORY (10) --- Aluminum Leg Wheel Wheel Heat Sink Seismic Detector Transport Network Coupler Medium Armor Plating Light Assault Rifle Plasma Cutter Plasma Cutter Peak State ------------ > --- POWER ------------ Ion Engine > --- PROPULSION ------- Aluminum Leg Aluminum Leg > --- UTILITY ---------- Heat Sink Medium Storage Unit Improved Terrain Scanner > --- WEAPON ----------- Medium Laser Medium Laser Plasma Cutter > --- INVENTORY -------- Aluminum Leg Wheel Wheel Compact Wheel Heat Sink Seismic Detector Transport Network Coupler Medium Armor Plating Light Assault Rifle Plasma Cutter [Rating: 13] Favorites ----------- Power Ion Engine Engine Ion Engine Propulsion Aluminum Leg Leg Aluminum Leg Wheel Wheel Utility Improved Terrain Scanner Device Improved Terrain Scanner Storage Small Storage Unit Weapon Medium Laser Energy Gun Medium Laser Ballistic Gun Assault Rifle Special Weapon Plasma Cutter Build | -11 -10 -9 ------- Run | Yrd Mat Mat Slots Evolved 2 | . . 2 Power . | . . . Propulsion . | . . . Utility 1 | . . 1 Weapon 1 | . . 1 Parts Attached 18 | 7 8 3 Power 2 | 1 1 . Engine 2 | 1 1 . Core . | . . . Reactor . | . . . Propulsion 7 | 2 5 . Treads . | . . . Leg 3 | . 3 . Wheel 4 | 2 2 . Hover . | . . . Flight . | . . . Utility 4 | 2 1 1 Device 2 | 1 . 1 Storage 2 | 1 1 . Processor . | . . . Hackware . | . . . Protection . | . . . Artifact . | . . . Weapon 5 | 2 1 2 Energy Gun 3 | 1 1 1 Energy Cannon . | . . . Ballistic Gun 1 | 1 . . Ballistic Cannon . | . . . Launcher . | . . . Special Weapon 1 | . . 1 Impact Weapon . | . . . Slashing Weapon . | . . . Piercing Weapon . | . . . Special Melee Weapon . | . . . Unidentified Prototypes . | . . . Parts Lost 1 | . 1 . Power 1 | . 1 . Propulsion . | . . . Utility . | . . . Weapon . | . . . Highest Loss Streak 1 | . 1 . To Critical Strikes . | . . . Average Slot Usage (%) 99 | . 99 100 Engine 13 | . 14 11 Leg 21 | . 21 22 Wheel 6 | . 6 . Device 14 | . 14 22 Storage 13 | . 14 11 Energy Gun 14 | . 13 22 Ballistic Gun 13 | . 14 3 Naked Turns . | . . . Heaviest Build 23 | 12 20 23 Greatest Support 26 | 26 26 20 Greatest Overweight (x) 1 | . . 1 Average Overweight (x) . | . . 1 Largest Inventory Capacity 10 | 8 10 10 Average Capacity 8 | 6 8 10 Most Carried 10 | 8 10 10 Average Carried 7 | 5 7 9 Final Capacity 10 | 8 10 10 Final Carried 10 | 8 10 10 Class Distribution -------------------- 94% | Mutant 5% | Skirmisher Dominant Class ---------------- Mutant | -10/Materials Skirmisher | -9/Materials Resources | -11 -10 -9 ----------- Run | Yrd Mat Mat Matter Collected 435 | 202 233 . Remotely . | . . . Salvage Created 270 | 26 244 . Parts 24 | 7 17 . Haulers Intercepted . | . . . Recyclers Shooed . | . . . Parts Field Recycled . | . . . Retrieved Matter . | . . . Parts Self-Destructed . | . . . Prevented . | . . . Kills | -11 -10 -9 ------- Run | Yrd Mat Mat Combat Hostiles Destroyed 8 | . 8 . Guns 8 | . 8 . Classes Destroyed 4 | 1 3 . Tunneler 2 | 2 . . Watcher 1 | . 1 . Swarmer 3 | . 3 . Grunt 5 | . 5 . Best Kill Streak 5 | 1 5 . Combat Bots Only 4 | . 4 . Max Kills in Single Turn 1 | 1 1 . Gunslinging . | . . . Exploded . | . . . Melee . | . . . Uniques/NPCs Destroyed . | . . . Combat | -11 -10 -9 -------- Run | Yrd Mat Mat Hostile Shots Fired 31 | . 31 . Missed 10 | . 10 . Damage Taken 272 | . 272 . Core 96 | . 96 . Absorbed by Shields . | . . . Core Remaining (%) 80 | 100 61 . Volleys Fired 36 | 4 32 . Largest 2 | 2 2 . Hottest 70 | 60 70 . Shots Fired 71 | 8 63 . Gun 71 | 8 63 . Cannon . | . . . Launcher . | . . . Special . | . . . Kinetic 36 | 4 32 . Thermal 35 | 4 31 . Explosive . | . . . Electromagnetic . | . . . Robot Hit Streak 8 | 2 8 . Robot Miss Streak 3 | 1 3 . Penetration Max . | . . . Secondary Targets . | . . . Shots Hit Robots 43 | 4 39 . Core Hits 19 | 3 16 . Critical Kills . | . . . Critical Parts Destroyed . | . . . Critical Strikes 2 | . 2 . Burn 2 | . 2 . Melee Attacks . | . . . Impact . | . . . Slashing . | . . . Piercing . | . . . Sneak Attacks . | . . . Combat Hostiles . | . . . Follow-up Attacks . | . . . Damage Inflicted 546 | 48 498 . Guns 546 | 48 498 . Cannons . | . . . Explosions . | . . . Melee . | . . . Ramming . | . . . Kinetic 310 | 25 285 . Thermal 236 | 23 213 . Explosive . | . . . Electromagnetic . | . . . Impact . | . . . Slashing . | . . . Piercing . | . . . Highest Corruption . | . . . Average Corruption . | . . . Corruption Purged . | . . . Corruption Blocked . | . . . Overload Shots . | . . . Overflow Damage . | . . . Projectiles . | . . . Explosions . | . . . Melee . | . . . Knockbacks . | . . . Impact . | . . . Kinetic . | . . . Secondary . | . . . Self-Inflicted Damage . | . . . Shots . | . . . Rammed . | . . . Targets Rammed . | . . . Kicked . | . . . Crushed . | . . . Highest Temperature 126 | . 126 . Average Temperature 41 | . 41 . Received Heat Transfer 99 | . 99 . Siege Activations . | . . . Robots Corrupted . | . . . Combat Hostiles . | . . . Parts Fried . | . . . Impact Corruptions . | . . . Robots Melted . | . . . Combat Hostiles . | . . . Parts Melted 1 | . 1 . Heat Transferred 827 | 50 777 . Parts Sabotaged . | . . . Parts Stolen . | . . . Parts Stripped . | . . . Power Chain Reactions . | . . . Alert | -11 -10 -9 ------- Run | Yrd Mat Mat Peak Influence 169 | 10 169 . Initial 6 | . 6 . Average 62 | 3 71 . Maximum Alert Level . | . . . Low Security (%) 100 | 100 100 100 Level 1 . | . . . Level 2 . | . . . Level 3 . | . . . Level 4 . | . . . Level 5 . | . . . High Security . | . . . Max Security . | . . . Squads Dispatched 1 | . 1 . Investigation . | . . . Extermination . | . . . Reinforcement 1 | . 1 . Assault . | . . . Garrison . | . . . Intercept . | . . . Searches Triggered . | . . . Construction Impeded . | . . . Haulers Reinforced . | . . . Active Scanning Responses . | . . . Cargo Convoy Interrupts . | . . . Stealth | -11 -10 -9 --------- Run | Yrd Mat Mat Distress Signals . | . . . Communications Jammed . | . . . Distress Signals . | . . . Times Spotted 10 | . 10 . Peak Tracking Total 6 | . 6 . Tactical Retreats 1 | . 1 . Traps | -11 -10 -9 ------- Run | Yrd Mat Mat Traps Triggered 1 | . 1 . Indirectly . | . . . Trap Hack Attempts . | . . . Triggered . | . . . Disarmed . | . . . Reprogrammed . | . . . Reused . | . . . Traps Extracted . | . . . Installed . | . . . Triggered . | . . . Machines | -11 -10 -9 ---------- Run | Yrd Mat Mat Machines Disabled . | . . . Max in Single Turn . | . . . Machines Repaired . | . . . Machines Dismantled . | . . . Machines Sabotaged . | . . . Overloaded Fab Kills . | . . . Hacking | -11 -10 -9 --------- Run | Yrd Mat Mat Machines Accessed 2 | . 2 . Terminals 2 | . 2 . Fabricators . | . . . Repair Stations . | . . . Recycling Units . | . . . Scanalyzers . | . . . Garrison Access . | . . . Total Hacks 12 | . 12 . Successful 8 | . 8 . Failed 4 | . 4 . Catastrophic . | . . . Database Lockouts . | . . . Manual . | . . . Terminals 12 | . 12 . Fabricators . | . . . Repair Stations . | . . . Recycling Units . | . . . Scanalyzers . | . . . Garrison Access . | . . . Terminal Hacks 8 | . 8 . Record 1 | . 1 . Alert Level 5 | . 5 . Transport Status 1 | . 1 . Hauler Manifests 1 | . 1 . Fabricator Hacks . | . . . Repair Station Hacks . | . . . Recycling Unit Hacks . | . . . Scanalyzer . | . . . Garrison Access Hacks . | . . . Unauthorized Hacks . | . . . Terminals . | . . . Fabricators . | . . . Repair Stations . | . . . Recycling Units . | . . . Scanalyzers . | . . . Garrison Access . | . . . Data Cores Recovered . | . . . Used . | . . . Hacking Detections 1 | . 1 . Full Trace Events . | . . . Feedback Events . | . . . Feedback Blocked . | . . . Robot Schematics Acquired . | . . . Robots Built . | . . . Authchips . | . . . Time . | . . . Total Robot Build Rating . | . . . Part Schematics Acquired . | . . . Parts Built . | . . . Authchips . | . . . Time . | . . . Total Part Build Rating . | . . . Parts Repaired . | . . . Time . | . . . Parts Recycled . | . . . Recycled Matter . | . . . Retrieved Matter . | . . . Retrieved Components . | . . . Parts Scanalyzed . | . . . Part Schematics Acquired . | . . . Parts Damaged . | . . . Bothacking | -11 -10 -9 ------------ Run | Yrd Mat Mat Used RIF Installer . | . . . Robots Hacked . | . . . Non-combat . | . . . Combat . | . . . Robot Hacks Applied . | . . . Relay Couplers Released . | . . . Fabnet Peak Effective % . | . . . Robots Rewired . | . . . Allies Hacked . | . . . Hacks Repelled . | . . . Allies | -11 -10 -9 -------- Run | Yrd Mat Mat Total Allies . | . . . Largest Group . | . . . Highest-Rated Group . | . . . Highest-Rated Ally . | . . . Total Orders . | . . . Ally Attacks . | . . . Total Damage . | . . . Kills . | . . . Allies Corrupted . | . . . Allies Melted . | . . . Intel | -11 -10 -9 ------- Run | Yrd Mat Mat Robot Analysis Total . | . . . Derelict Logs Recovered . | . . . Drone Launches . | . . . Drone Recoveries . | . . . Exploration | -11 -10 -9 ------------- Run | Yrd Mat Mat Turns Passed 984 | 65 862 57 Spaces Moved 422 | 43 353 26 Core 10 | 10 . . Treads . | . . . Legs 249 | . 223 26 Wheels 163 | 33 130 . Hover . | . . . Flight . | . . . Fastest Speed 50 | 50 80 190 Average Speed 110 | 80 108 190 Slowest Speed 190 | 90 120 190 Overloaded Moves . | . . . Propulsion Burnouts . | . . . Robots Hopped . | . . . Cave-ins Triggered . | . . . Exploration Rate (%) 21 | 3 56 4 Regions Visited 2 Branch Regions . Pre-discovered Areas . | . . . Known Exits Taken . | . . . Unknown Exits Taken 2 | 1 1 . Scrap Searched . | . . . Spaces Dug . | . . . Terrain Destroyed . | . . . Melee . | . . . Projectile . | . . . AOE . | . . . Terrain Rammed . | . . . Walls Destroyed . | . . . Machines Disabled . | . . . Actions | -11 -10 -9 --------- Run | Yrd Mat Mat Total 863 | 61 768 34 Wait 363 | . 363 . Move 420 | 42 352 26 Hop . | . . . Pick Up 18 | 8 7 3 Fast Attach 9 | 7 1 1 Attach 4 | . 2 2 Detach . | . . . Swap 5 | . 5 . Drop 8 | . 6 2 Fire 36 | 4 32 . Melee . | . . . Ram . | . . . Kick . | . . . Crush . | . . . Escape Stasis . | . . . Rewire . | . . . Trap . | . . . Miscellaneous . | . . . Route ------- -11/Scrapyard -10/Materials (discovered 2 exits: [*Mat x2]) -9/Materials History --------- Turn | Location | Event 2 | -11/Scrapyard | Met Revision 17 8 | -11/Scrapyard | Discovered new exit (range 15) 66 | -11/Scrapyard | Entered Materials 97 | -10/Materials | Discovered new exit (range 15) 301 | -10/Materials | Build established: Mutant 344 | -10/Materials | Discovered new exit (range 16) 928 | -10/Materials | Entered another Materials area 928 | -9/Materials | Evolved 2 slots: Utility x1, Weapon x1 985 | -9/Materials | Self-destructed Last Messages --------------- 00812_ G-34 Mercenary destroyed. 00817_ K-01 Serf collects debris. 00817_ Acquired 65 matter. 00821_ K-01 Serf collects debris. 00825_ Dropped Sml. Storage Unit. 00828_ K-01 Serf collects debris. 00833_ Acquired Aluminum Leg. 00835_ K-01 Serf collects debris. 00837_ Acquired Heat Sink. 00839_ K-01 Serf collects debris. 00915_ U-05 Engineer lays Concrete. PARAMETERS=UTILITY+1,WEAPON+1 LOCATION=UNKNOWN GOAL=ESCAPE 00938_ Acquired Med. Armor Plating. 00945_ Acquired Plasma Cutter. 00946_ Dropped Assault Rifle. 00948_ Acquired Plasma Cutter. 00950_ Dropped Com. Wheel. 00952_ Acquired Plasma Cutter. Map ----- +----------------------------------------------------+ | ??????????????????????#???????????????? | | ??????????????????????????????????????? | | ??????????????????????????##??????????? | | ??????????????????????????????????????? | | ?????????????????????#??#?????????????? | | ??????????????????????????????????????? | | ?????????????????????#?????????????#??? | | ????????????????????????????#????????#? | | ??????????????????????#############???? | | ??????????????????????# # !!| #????? | | ?????????????#????????# # ! | #????? | | ??????????????????????# # ![= #????? | | ?????????????????????## + #????? | | ??????????????????????# # "T" #????? | | ??????????????????????# # #????? | | ?????????????????????## ########????? | | ????????????????????#?# #???????????? | | ??????????????????????# #?????#?????? | | ??????????????????????# ##???#??????? | | ?????????????#????????# #??#?#?#????? | | ??????????????????##??# #???????????? | | ??????????????????????# #???????????? | | ?????????????????????## #???????????? | | ??????????????????????# #???????????? | | ??????????????????????# #??????"????? | | ??????????????? ??????# @#??????? ???? | | ??????????????????????+ +???????????? | | ??????????????????????# #???????????? | | ??????????????????????# #???????????? | | ??????????????????????# #???????????? | | ??????????????????????# #???????????? | | ??????????????????????# #???????????? | | ??????????????????????# #???????????? | | ?????????????????????? +???????????? | | ?????????????????????? ????????????? | | ?????????????????????? ???????#????? | | ????????????????????? ????????????? | | ????????????????????? ????????????? | | ????????????????????? o ????????????? | | ????????????????????? ????????????? | | ??????????????????????? ????????????? | | ??????????????????????????????????????? | | ??????????????????????????????????????? | | ??????????????????????????????????????? | | ??????????????????????????????????????? | | ??????????????????????????????????????? | | ??????????????????????????????????????? | | ??????????????????????????????????????? | | ??????????????????????????????????????? | | ??????????????????????????????????????? | +----------------------------------------------------+ Best States ------------- Heat Dissipation 38 Energy Generation 10 Energy Capacity 250 Matter Stores 298 Matter Capacity 300 Sight Range 16 Terrain Scan Range 16 Terrain Scan Density 10 Evasion (%) 55 Item Schematics ----------------- None Robot Schematics ------------------ None Fabricated ------------ Nothing Alien Tech Used ----------------- None Achievements -------------- None Challenges ------------ None Game ------ Seed ParticleChainFlightbrick Manual? 0 Play Time 00:17:52 Cumulative 16.2 hours Start 2024.04.21 @ 11:44:23 End 2024.07.29 @ 19:34:57 Sessions 3 Manual Loads 0 Difficulty Rogue Special Mode None Game No. 18 Rogue 18 Adventurer 0 Explorer 0 Win Type - Total 0 Types 0/0/0/0/0/0/0/0/0 Lore% 4 Gallery% 17 Achievement% 14 Wizard Run 0 Options --------- Layout 1 ASCII 0 Keyboard 0 Movement Mouse Keybinds 0 Fullscreen 1 Font 16/SmallcapsGlow Map View 25x20 Zoom Use 3% Tactical HUD 1 Map Filters NONE Filters NONE Steam SD RUN: 8016e285-9b4a-4d30-83e6-8381027c7299